fUSD/lending_fUSD_20240829
["ID","MTS","AMOUNT","RATE_DAILY","PERIOD"]
[336605421,1724969474220,-387.09246523,0.00024657,4]
[336605422,1724969474229,-500.0,0.00024657,4]
[336605423,1724969474239,-500.0,0.00024657,4]
[336605424,1724969474248,-500.0,0.00024657,4]
[336605425,1724969474258,-500.0,0.00024657,4]
[336605426,1724969474267,-500.0,0.00024657,4]
[336605427,1724969474276,-500.0,0.00024657,4]
[336605428,1724969474285,-500.0,0.00024657,4]
[336605429,1724969474295,-500.0,0.00024657,4]
[336605430,1724969474304,-1202.896051,0.00024657,7]
[336605431,1724969474316,-1202.896051,0.00024657,7]
[336605432,1724969474327,-500.0,0.00024657,4]
[336605433,1724969474336,-1202.896051,0.00024657,7]
[336605434,1724969474347,-283.83526836,0.00024657,4]
[336605435,1724969474355,-1202.896048,0.00024657,7]
[336605436,1724969474364,-197.412008,0.00024657,7]
[336605437,1724969474373,-197.412008,0.00024657,7]
[336605438,1724969474384,-197.412008,0.00024657,7]
[336605439,1724969474393,-197.412016,0.00024657,7]
[336605440,1724969474403,-543.4993667,0.00024657,4]
[336605441,1724969474412,-248.17361,0.00024657,7]
[336605442,1724969474422,-151.0,0.00024657,7]
[336605443,1724969474431,-151.0,0.00024657,7]
[336605444,1724969474441,-314.230487,0.00024657,7]
[336605445,1724969474450,-314.230487,0.00024657,7]
[336605446,1724969474460,-314.230487,0.00024657,7]
[336605447,1724969474469,-314.230479,0.00024657,7]
[336605448,1724969474478,-500.0,0.00024657,4]
[336605449,1724969474487,-500.0,0.00024657,4]
[336605450,1724969474497,-500.0,0.00024657,4]
[336605451,1724969474506,-500.0,0.00024657,4]
[336605452,1724969474515,-500.0,0.00024657,4]
[336605453,1724969474524,-500.0,0.00024657,4]
[336605454,1724969474533,-500.0,0.00024657,4]
[336605455,1724969474543,-520.20222199,0.00024657,4]
[336605456,1724969474552,-543.28336671,0.00024657,4]
[336605457,1724969474561,-10590.18772794,0.00024657,2]
[336605458,1724969474576,-5417.50739914,0.00024657,2]
[336605459,1724969474587,-12119.3032,0.00024657,2]
[336605460,1724969474599,-3060.0,0.00024657,2]
[336605461,1724969474610,-569.57985248,0.00024657,2]
[336605462,1724969474622,-5443.79377956,0.00024657,2]
[336605463,1724969474633,-42853.0810608,0.00024657,2]
[336605464,1724969474644,-330.56079548,0.00024657,2]
[336605465,1724969474655,-19615.9861846,0.00024657,2]
[336605466,1724969474664,-10902.3138154,0.00024657,2]
[336605467,1724969474674,-476.98637525,0.00024657,2]
[336605468,1724969474685,-589.7,0.00024657,2]
[336605469,1724969474697,-906.315,0.00024657,2]
[336605470,1724969474766,4802.2494,0.000109,2]
[336605471,1724969479762,756.9193,0.000109,2]
[336605472,1724969491604,424.9518,0.000109,2]
[336605473,1724969522436,17128.472,0.000109,2]
[336605474,1724969613252,8166.0064,0.000109,2]
[336605475,1724969613827,500.0,0.00010912,2]
[336605481,1724969784049,1359.43343476,0.0001,2]
[336605482,1724969955593,175.2,0.00010959,2]
[336605483,1724970070255,150.0,0.00010934,2]
[336605488,1724970353693,4783.23581756,0.00010399,2]
[336605491,1724970395902,198.03408236,0.000109,2]
[336605492,1724970424521,241.94907099,0.000109,2]
[336605493,1724970435395,2970.9959325,0.000109,2]
[336605495,1724970503516,954.50543928,0.000109,2]
[336605502,1724970558795,201.78608962,0.000109,2]
[336605503,1724970564582,7500.0,0.000109,2]
[336605511,1724970603996,150.0,0.000109,2]
[336605512,1724970604037,150.0,0.000109,2]
[336605513,1724970608585,150.0,0.000109,2]
[336605514,1724970608880,150.0,0.000109,2]
[336605515,1724970609084,150.0,0.000109,2]
[336605516,1724970609290,208.14,0.000109,2]
[336605517,1724970624389,178.53,9.77e-05,2]
[336605520,1724970631371,-1081.0,0.00010989,2]
[336605522,1724970631380,-152.18,0.0001099,2]
[336605524,1724970631389,-6155.65723151,0.0001099,2]
[336605525,1724970631399,-152.18,0.0001099,2]
[336605527,1724970631408,-152.18,0.0001099,2]
[336605528,1724970631418,-152.18,0.0001099,2]
[336605529,1724970631428,-152.18,0.0001099,2]
[336605530,1724970631437,-152.18,0.0001099,2]
[336605531,1724970631447,-152.18,0.0001099,2]
[336605532,1724970631458,-152.18,0.0001099,2]
[336605533,1724970631468,-300.0,0.00010998,2]
[336605534,1724970631478,-5038.73658722,0.00010999,2]
[336605535,1724970631487,-150.0,0.00010999,2]
[336605536,1724970631496,-500.0,0.00010999,2]
[336605537,1724970631506,-519.40523966,0.00010999,2]
[336605538,1724970631516,-500.0,0.00010999,2]
[336605539,1724970631526,-500.0,0.00010999,2]
[336605540,1724970631535,-500.0,0.00010999,2]
[336605541,1724970631544,-250.0,0.00010999,2]
[336605542,1724970631554,-500.0,0.00010999,2]
[336605543,1724970631564,-218073.32063903,0.00011,2]
[336605544,1724970631576,-3114277.19267074,0.00011,2]
[336605545,1724970631587,-744.74087495,0.00011,2]
[336605546,1724970631598,-255.5570155,0.00011,2]
[336605638,1724970637693,-281.39601331,0.00010997,2]
[336605639,1724970637702,-31.75182169,0.00010997,2]
[336605640,1724970637777,-2219.41628479,0.00010997,2]
[336605641,1724970637787,-2991390.41638269,0.00011,2]
[336605642,1724970637797,-407964.5809444,0.00011,2]
[336605643,1724970637809,-3936.04611518,0.00011,2]
[336605644,1724970637820,-1496.7,0.00011,2]
[336605645,1724970637859,-1507.16066445,0.00011,2]
[336605646,1724970637944,-181943.47693815,0.00011,2]
[336605787,1724970639496,-1044.40373045,0.00011,2]
[336605790,1724970639508,-2791.01494139,0.00011,2]
[336605792,1724970639518,-7659.00000018,0.00011,2]
[336605801,1724970639593,-7098.75149258,0.00011,2]
[336605803,1724970639604,-199496.60798903,0.00011,2]
[336605805,1724970639615,-1456.9494419,0.00011,2]
[336605807,1724970639627,-696.865,0.00011,2]
[336605819,1724970639744,-840.10442546,0.00011,2]
[336605821,1724970639756,-4166438.16632127,0.00011,2]
[336605823,1724970639767,-498.12324986,0.00011,2]
[336605825,1724970639777,-3191318.31687548,0.00011,2]
[336605827,1724970639786,-322.42,0.000111,2]
[336605829,1724970639795,-625.57,0.000111,2]
[336605830,1724970639804,-150.99,0.000111,2]
[336605832,1724970639814,-556.42,0.000111,2]
[336605834,1724970639823,-499.99,0.000111,2]
[336605836,1724970639832,-5135.19,0.000111,2]
[336605838,1724970639841,-600.0,0.000115,2]
[336605840,1724970639850,-499.99,0.000115,2]
[336605841,1724970639860,-999.99,0.000115,2]
[336605843,1724970639869,-259.0,0.0001169,2]
[336605845,1724970639878,-255.0,0.00012044,2]
[336605847,1724970639888,-420.0,0.00012086,2]
[336605849,1724970639897,-290.20358656,0.000125,2]
[336605851,1724970639906,-11123.11458995,0.0001251,2]
[336605853,1724970639915,-590.58,0.0001254,2]
[336605855,1724970639923,-250.0,0.00012698,2]
[336605857,1724970639933,-4178.87820209,0.00013,2]
[336605859,1724970639941,-199.999999,0.00013,2]
[336605861,1724970639950,-5047.90537165,0.0001305,2]
[336605862,1724970639959,-368.0,0.00013187,2]
[336605864,1724970639973,-587.0,0.00013281,2]
[336605866,1724970639982,-259.0,0.0001338,2]
[336605868,1724970639991,-4249.61,0.00013385,2]
[336605870,1724970640000,-1000.0,0.000135,2]
[336605872,1724970640009,-800.0,0.00013699,2]
[336605874,1724970640018,-800.0,0.00013699,2]
[336605876,1724970640027,-800.0,0.00013699,2]
[336605878,1724970640036,-800.0,0.00013699,2]
[336605880,1724970640045,-171.31,0.00013699,2]
[336605882,1724970640054,-800.0,0.00013699,2]
[336605884,1724970640063,-800.0,0.00013699,2]
[336605886,1724970640072,-800.0,0.00013699,2]
[336605888,1724970640081,-800.0,0.00013699,2]
[336605890,1724970640090,-800.0,0.00013699,2]
[336605892,1724970640099,-800.0,0.00013699,2]
[336605894,1724970640108,-800.0,0.00013699,2]
[336605896,1724970640117,-800.0,0.00013699,2]
[336605898,1724970640126,-1179.01,0.00013699,2]
[336605900,1724970640135,-6909.02,0.000137,2]
[336605901,1724970640144,-6909.02,0.000137,2]
[336605903,1724970640153,-6909.02,0.000137,2]
[336605905,1724970640162,-6909.02,0.000137,2]
[336605907,1724970640172,-6909.02,0.000137,2]
[336605909,1724970640181,-3166.23163601,0.00013865,2]
[336605911,1724970640190,-297233.120262,0.000139,2]
[336605912,1724970640199,-151.0,0.000139,2]
[336605914,1724970640208,-2085.781294,0.000139,2]
[336605916,1724970640219,-2085.781294,0.000139,2]
[336605918,1724970640228,-227.873123,0.000139,2]
[336605920,1724970640238,-151.0,0.000139,2]
[336605922,1724970640248,-151.0,0.000139,2]
[336605924,1724970640257,-151.0,0.000139,2]
[336605926,1724970640267,-206.49682,0.000139,2]
[336605928,1724970640278,-151.0,0.000139,2]
[336605930,1724970640287,-150.99,0.00013999,2]
[336605932,1724970640296,-267.22345679,0.00014,2]
[336605934,1724970640306,-597.08,0.00014169,2]
[336605936,1724970640316,-1179.01,0.00014384,2]
[336605938,1724970640325,-674.09,0.00014504,2]
[336605940,1724970640335,-8589.82,0.00014504,2]
[336605942,1724970640344,-1500.0,0.00014581,2]
[336605944,1724970640353,-823.0,0.00014594,2]
[336605946,1724970640363,-178.53,0.00014656,2]
[336605948,1724970640373,-597.08,0.0001467,2]
[336605950,1724970640383,-173.873026,0.00014806,2]
[336605952,1724970640393,-1933.23556437,0.00015,2]
[336605954,1724970640403,-753.35110868,0.00015,2]
[336605956,1724970640413,-81723.74717626,0.00015,2]
[336605958,1724970640422,-11107.22089134,0.00015,2]
[336605959,1724970640431,-1179.01,0.00015068,2]
[336605961,1724970640441,-259.0,0.0001507,2]
[336605963,1724970640450,-597.08,0.00015171,2]
[336605965,1724970640460,-173.873026,0.00015546,2]
[336605967,1724970640470,-597.08,0.00015672,2]
[336605969,1724970640479,-1179.01,0.00015753,2]
[336605971,1724970640489,-500.0,0.0001585,2]
[336605973,1724970640498,-200.0,0.0001585,2]
[336605975,1724970640507,-200.0,0.0001585,2]
[336605977,1724970640517,-226.0,0.00016,2]
[336605979,1724970640526,-358.0,0.00016,2]
[336605980,1724970640535,-1000.0,0.00016,2]
[336605982,1724970640545,-1152.0,0.00016037,2]
[336605984,1724970640555,-597.08,0.00016173,2]
[336605986,1724970640565,-13109.18575486,0.0001639,2]
[336605988,1724970640575,-3548.0,0.000164,3]
[336605990,1724970640585,-1179.01,0.00016438,2]
[336605992,1724970640595,-447.0,0.00016545,2]
[336605994,1724970640604,-597.08,0.00016674,2]
[336605996,1724970640613,-259.0,0.0001676,2]
[336605998,1724970640622,-597.08,0.00017175,2]
[336606000,1724970640632,-90160.06,0.000173,2]
[336606002,1724970640641,-175.2,0.00017592,2]
[336606003,1724970640650,-498.12324985,0.00017769,2]
[336606005,1724970640659,-250.0,0.0001786,2]
[336606007,1724970640669,-557.0,0.00017938,2]
[336606009,1724970640678,-810.0,0.00017938,2]
[336606011,1724970640687,-930.0,0.00017938,2]
[336606013,1724970640697,-552.0,0.00017938,2]
[336606015,1724970640706,-1897.0,0.00017938,2]
[336606017,1724970640716,-1654.221,0.00017938,2]
[336606018,1724970640726,-1150.0,0.00017938,2]
[336606020,1724970640735,-2336.96,0.00017961,2]
[336606022,1724970640746,-500.0,0.00018,2]
[336606024,1724970640756,-23900.0,0.00018185,2]
[336606026,1724970640773,-151.0,0.00018185,2]
[336606028,1724970640783,-2085.781294,0.00018185,2]
[336606031,1724970640794,-2085.781294,0.00018185,2]
[336606033,1724970640805,-151.0,0.00018185,2]
[336606035,1724970640815,-151.0,0.00018185,2]
[336606037,1724970640825,-151.0,0.00018185,2]
[336606039,1724970640835,-151.0,0.00018185,2]
[336606041,1724970640845,-259.0,0.0001845,2]
[336606043,1724970640856,-171.31,0.00018493,2]
[336606045,1724970640865,-1000.0,0.00018548,2]
[336606047,1724970640874,-150.048,0.00018752,2]
[336606049,1724970640884,-1459.66,0.000188,7]
[336606051,1724970640893,-1500.0,0.00019446,2]
[336606054,1724970640905,-57527.75,0.000195,2]
[336606056,1724970640913,-151.0,0.000195,2]
[336606058,1724970640922,-500.0,0.00019664,2]
[336606060,1724970640933,-200.0,0.00019712,2]
[336606062,1724970640942,-2751.0,0.00019725,2]
[336606064,1724970640951,-260.79,0.00019816,2]
[336606066,1724970640960,-150.0,0.00020041,2]
[336606068,1724970640970,-250.0,0.0002012,2]
[336606070,1724970640979,-259.0,0.0002014,2]
[336606072,1724970640989,-44462.74,0.00020157,2]
[336606074,1724970641000,-400.0,0.00020526,2]
[336606076,1724970641011,-2000.0,0.00020551,2]
[336606078,1724970641021,-1000.0,0.00020607,2]
[336606080,1724970641030,-207.0,0.00020938,2]
[336606082,1724970641039,-287.042154,0.00021,2]
[336606084,1724970641049,-1020.68791628,0.000214,10]
[336606085,1724970641058,-1296.07,0.00021589,30]
[336606088,1724970641076,-57527.75,0.000218,2]
[336606091,1724970641090,-2500.0,0.00021816,2]
[336606093,1724970641100,-259.0,0.0002183,2]
[336606095,1724970641110,-1286.13,0.00021918,2]
[336606097,1724970641119,-150.0,0.00021918,2]
[336606099,1724970641129,-1818.39,0.00021918,2]
[336606101,1724970641139,-3000.0,0.000222,2]
[336606103,1724970641149,-150.0,0.00022414,2]
[336606105,1724970641160,-150.0,0.00022495,2]
[336606107,1724970641169,-206.714645,0.0002274,2]
[336606109,1724970641179,-150.0,0.00023,2]
[336606112,1724970641191,-173.0,0.00023,2]
[336606114,1724970641200,-16923.1653294,0.00023057,2]
[336606116,1724970641209,-150.0,0.00023071,2]
[336606118,1724970641220,-400.0,0.00023091,2]
[336606120,1724970641230,-1000.0,0.00023183,2]
[336606122,1724970641240,-180.0,0.00023205,2]
[336606124,1724970641249,-2341.85556529,0.00023215,2]
[336606125,1724970641258,-171.31,0.00023288,2]
[336606127,1724970641267,-173.0,0.00023288,2]
[336606130,1724970641277,-1000.0,0.000235,2]
[336606132,1724970641286,-1000.0,0.000235,2]
[336606134,1724970641295,-1000.0,0.000235,2]
[336606136,1724970641305,-1000.0,0.000235,2]
[336606138,1724970641314,-1000.0,0.000235,2]
[336606140,1724970641323,-1000.0,0.000235,2]
[336606142,1724970641336,-1000.0,0.000235,2]
[336606144,1724970641347,-259.0,0.0002352,2]
[336606146,1724970641357,-206.714645,0.00023562,2]
[336606148,1724970641366,-150.0,0.00023648,2]
[336606150,1724970641375,-378.04,0.00023657,2]
[336606152,1724970641385,-500.0,0.00023657,2]
[336606154,1724970641394,-500.0,0.00023657,2]
[336606155,1724970641404,-57527.75,0.000237,7]
[336606158,1724970641413,-151.0,0.000237,7]
[336606159,1724970641422,-2085.781294,0.000237,7]
[336606161,1724970641432,-2085.781294,0.000237,7]
[336606163,1724970641441,-151.0,0.000237,7]
[336606165,1724970641451,-151.0,0.000237,7]
[336606167,1724970641460,-151.0,0.000237,7]
[336606169,1724970641471,-269.64347,0.000237,7]
[336606171,1724970641480,-151.07690713,0.0002379,2]
[336606173,1724970641490,-720.459139,0.000238,5]
[336606175,1724970641500,-1251.14,0.000239,14]
[336606177,1724970641510,-1357.67,0.00023973,2]
[336606179,1724970641519,-279.999999,0.00024,2]
[336606181,1724970641528,-421.62,0.00024055,2]
[336606183,1724970641539,-607.25,0.0002411,2]
[336606185,1724970641549,-150.0,0.0002411,2]
[336606187,1724970641560,-698.09,0.0002411,2]
[336606189,1724970641570,-427.09,0.0002411,2]
[336606191,1724970641579,-173.0,0.00024164,2]
[336606193,1724970641588,-426.91,0.00024192,2]
[336606195,1724970641598,-175.2,0.00024225,2]
[336606196,1724970641608,-150.0,0.00024225,2]
[336606198,1724970641617,-206.714645,0.00024384,2]
[336606200,1724970641627,-500.0,0.00024418,2]
[336606202,1724970641637,-1656.41152646,0.0002442,2]
[336606204,1724970641646,-500.0,0.00024427,2]
[336606206,1724970641656,-412.21991848,0.00024434,2]
[336606208,1724970641665,-500.0,0.00024436,2]
[336606210,1724970641675,-500.0,0.00024445,2]
[336606212,1724970641684,-500.0,0.00024454,2]
[336606214,1724970641693,-2247.7799,0.00024457,2]
[336606216,1724970641702,-500.0,0.00024459,2]
[336606218,1724970641713,-500.0,0.0002446,2]
[336606220,1724970641723,-500.0,0.0002446,2]
[336606222,1724970641732,-500.0,0.00024462,2]
[336606224,1724970641742,-500.0,0.00024471,2]
[336606226,1724970641752,-500.0,0.0002448,2]
[336606228,1724970641764,-500.0,0.00024489,2]
[336606230,1724970641775,-500.0,0.00024498,2]
[336606232,1724970641785,-867.538723,0.000245,2]
[336606234,1724970641796,-500.0,0.00024506,2]
[336606236,1724970641806,-500.0,0.00024515,2]
[336606239,1724970641817,-500.0,0.00024524,2]
[336606241,1724970641828,-500.0,0.00024533,2]
[336606243,1724970641838,-500.0,0.00024534,2]
[336606245,1724970641851,-500.0,0.00024534,2]
[336606247,1724970641861,-500.0,0.00024534,2]
[336606249,1724970641871,-500.0,0.00024534,2]
[336606251,1724970641879,-500.0,0.00024534,2]
[336606254,1724970641891,-500.0,0.00024534,2]
[336606256,1724970641903,-500.0,0.00024534,2]
[336606258,1724970641913,-500.0,0.00024534,2]
[336606260,1724970641923,-500.0,0.00024534,2]
[336606262,1724970641932,-500.0,0.00024534,2]
[336606264,1724970641941,-161.7692,0.00024534,2]
[336606266,1724970641950,-498.12324985,0.00024538,2]
[336606268,1724970641959,-151.0,0.0002454,7]
[336606270,1724970641970,-500.0,0.00024542,2]
[336606272,1724970641979,-500.0,0.0002455,2]
[336606274,1724970641988,-3028.0524,0.00024557,2]
[336606276,1724970641998,-3565.87,0.00024557,2]
[336606278,1724970642007,-225.0512,0.00024557,2]
[336606280,1724970642017,-475.1075,0.00024557,2]
[336606282,1724970642026,-376.4719,0.00024557,2]
[336606284,1724970642036,-73466.6068,0.00024557,2]
[336606286,1724970642046,-886.3381,0.00024557,2]
[336606288,1724970642057,-62207.4226,0.00024557,2]
[336606290,1724970642066,-717.3249,0.00024557,2]
[336606292,1724970642075,-500.0,0.00024559,2]
[336606294,1724970642084,-500.0,0.00024568,2]
[336606296,1724970642094,-427.09,0.00024575,2]
[336606298,1724970642104,-307.74,0.00024575,2]
[336606300,1724970642114,-500.0,0.00024577,2]
[336606302,1724970642124,-500.0,0.00024586,2]
[336606305,1724970642134,-500.0,0.00024594,2]
[336606307,1724970642145,-496.0,0.000246,8]
[336606309,1724970642155,-193.0,0.000246,8]
[336606311,1724970642166,-3562.0,0.000246,15]
[336606313,1724970642177,-500.0,0.00024603,2]
[336606315,1724970642187,-500.0,0.00024612,2]
[336606317,1724970642198,-500.0,0.00024621,2]
[336606319,1724970642207,-925.0,0.00024623,2]
[336606321,1724970642218,-500.0,0.0002463,2]
[336606323,1724970642227,-151.0,0.00024637,7]
[336606325,1724970642236,-151.0,0.00024637,7]
[336606327,1724970642246,-151.0,0.00024637,7]
[336606330,1724970642257,-151.0,0.00024637,7]
[336606331,1724970642267,-151.403905,0.00024637,7]
[336606332,1724970642276,-500.0,0.00024638,2]
[336606333,1724970642285,-1298.91557238,0.00024655,10]
[336606334,1724970642295,-151.0,0.00024656,7]
[336606335,1724970642304,-2085.781294,0.00024656,7]
[336606336,1724970642313,-2085.781294,0.00024656,7]
[336606337,1724970642323,-151.0,0.00024656,7]
[336606338,1724970642332,-151.0,0.00024656,7]
[336606340,1724970642342,-151.0,0.00024656,7]
[336606341,1724970642351,-600.03,0.00024657,4]
[336606343,1724970642361,-600.03,0.00024657,4]
[336606345,1724970642371,-600.03,0.00024657,4]
[336606347,1724970642380,-600.03,0.00024657,4]
[336606349,1724970642390,-600.03,0.00024657,4]
[336606351,1724970642400,-600.03,0.00024657,4]
[336606353,1724970642409,-600.03,0.00024657,4]
[336606356,1724970642419,-600.03,0.00024657,4]
[336606359,1724970642428,-600.03,0.00024657,4]
[336606362,1724970642437,-600.03,0.00024657,4]
[336606365,1724970642446,-600.03,0.00024657,4]
[336606367,1724970642456,-500.0,0.00024657,4]
[336606369,1724970642466,-600.03,0.00024657,4]
[336606371,1724970642475,-290.87902626,0.00024657,4]
[336606373,1724970642484,-600.03,0.00024657,4]
[336606375,1724970642494,-600.03,0.00024657,4]
[336606377,1724970642504,-600.03,0.00024657,4]
[336606379,1724970642513,-600.03,0.00024657,4]
[336606381,1724970642522,-600.03,0.00024657,4]
[336606383,1724970642531,-500.0,0.00024657,4]
[336606385,1724970642540,-500.0,0.00024657,4]
[336606387,1724970642563,-500.0,0.00024657,4]
[336606389,1724970642573,-500.0,0.00024657,4]
[336606392,1724970642583,-500.0,0.00024657,4]
[336606394,1724970642592,-500.0,0.00024657,4]
[336606396,1724970642602,-500.0,0.00024657,4]
[336606398,1724970642611,-500.0,0.00024657,4]
[336606400,1724970642620,-500.0,0.00024657,4]
[336606402,1724970642630,-500.0,0.00024657,4]
[336606436,1724970642935,-500.0,0.00024657,4]
[336606438,1724970642957,-164.48595454,0.00024657,4]
[336606440,1724970642967,-475.68,0.00024657,4]
[336606442,1724970642985,-500.0,0.00024657,4]
[336606444,1724970642994,-644.8,0.00024657,4]
[336606446,1724970643003,-535.75052206,0.00024657,4]
[336606448,1724970643012,-500.0,0.00024657,4]
[336606450,1724970643021,-252.79306851,0.00024657,4]
[336606452,1724970643029,-500.0,0.00024657,4]
[336606453,1724970643038,-500.0,0.00024657,4]
[336606455,1724970643047,-500.0,0.00024657,4]
[336606457,1724970643056,-500.0,0.00024657,4]
[336606459,1724970643065,-500.0,0.00024657,4]
[336606461,1724970643074,-500.0,0.00024657,4]
[336606463,1724970643083,-500.0,0.00024657,4]
[336606464,1724970643093,-500.0,0.00024657,4]
[336606466,1724970643102,-500.0,0.00024657,4]
[336606469,1724970643111,-500.0,0.00024657,4]
[336606472,1724970643119,-500.0,0.00024657,4]
[336606475,1724970643128,-500.0,0.00024657,4]
[336606477,1724970643137,-500.0,0.00024657,4]
[336606481,1724970643147,-500.0,0.00024657,4]
[336606484,1724970643156,-500.0,0.00024657,4]
[336606487,1724970643165,-239.22,0.00024657,4]
[336606489,1724970643175,-500.0,0.00024657,4]
[336606492,1724970643184,-1766.95,0.00024657,4]
[336606495,1724970643194,-1766.95,0.00024657,4]
[336606498,1724970643203,-1766.95,0.00024657,4]
[336606500,1724970643212,-1766.95,0.00024657,4]
[336606503,1724970643232,-1766.95,0.00024657,4]
[336606505,1724970643242,-1766.95,0.00024657,4]
[336606507,1724970643251,-1766.95,0.00024657,4]
[336606509,1724970643260,-1766.95,0.00024657,4]
[336606511,1724970643270,-1766.95,0.00024657,4]
[336606513,1724970643279,-1766.95,0.00024657,4]
[336606515,1724970643288,-1766.95,0.00024657,4]
[336606517,1724970643298,-1766.95,0.00024657,4]
[336606519,1724970643308,-1766.95,0.00024657,4]
[336606522,1724970643318,-500.0,0.00024657,4]
[336606524,1724970643328,-1766.95,0.00024657,4]
[336606526,1724970643338,-500.0,0.00024657,4]
[336606527,1724970643347,-1766.95,0.00024657,4]
[336606529,1724970643357,-500.0,0.00024657,4]
[336606531,1724970643366,-500.0,0.00024657,4]
[336606533,1724970643376,-1373.07,0.00024657,4]
[336606535,1724970643385,-500.0,0.00024657,4]
[336606537,1724970643394,-1373.07,0.00024657,4]
[336606539,1724970643404,-500.0,0.00024657,4]
[336606541,1724970643414,-1373.07,0.00024657,4]
[336606543,1724970643424,-500.0,0.00024657,4]
[336606545,1724970643434,-1373.07,0.00024657,4]
[336606547,1724970643444,-1373.07,0.00024657,4]
[336606549,1724970643454,-1373.07,0.00024657,4]
[336606551,1724970643463,-1373.07,0.00024657,4]
[336606553,1724970643477,-1373.07,0.00024657,4]
[336606555,1724970643486,-1373.07,0.00024657,4]
[336606557,1724970643496,-1373.07,0.00024657,4]
[336606559,1724970643505,-1373.07,0.00024657,4]
[336606561,1724970643515,-1373.07,0.00024657,4]
[336606563,1724970643525,-1373.07,0.00024657,4]
[336606565,1724970643535,-1373.07,0.00024657,4]
[336606567,1724970643545,-1373.07,0.00024657,4]
[336606569,1724970643559,-1373.07,0.00024657,4]
[336606571,1724970643569,-1373.07,0.00024657,4]
[336606573,1724970643578,-5370.4,0.00024657,4]
[336606575,1724970643587,-5370.4,0.00024657,4]
[336606577,1724970643597,-5370.4,0.00024657,4]
[336606579,1724970643606,-5370.4,0.00024657,4]
[336606581,1724970643615,-5370.4,0.00024657,4]
[336606582,1724970643624,-5370.4,0.00024657,4]
[336606584,1724970643634,-5370.4,0.00024657,4]
[336606586,1724970643643,-5370.4,0.00024657,4]
[336606588,1724970643653,-5370.4,0.00024657,4]
[336606590,1724970643662,-307.08358333,0.00024657,4]
[336606592,1724970643671,-500.0,0.00024657,4]
[336606594,1724970643680,-500.0,0.00024657,4]
[336606595,1724970643689,-500.0,0.00024657,4]
[336606597,1724970643698,-500.0,0.00024657,4]
[336606599,1724970643708,-500.0,0.00024657,4]
[336606601,1724970643719,-500.0,0.00024657,4]
[336606603,1724970643729,-500.0,0.00024657,4]
[336606605,1724970643738,-500.0,0.00024657,4]
[336606607,1724970643747,-350.44661177,0.00024657,4]
[336606609,1724970643756,-500.0,0.00024657,4]
[336606611,1724970643768,-500.0,0.00024657,4]
[336606613,1724970643779,-500.0,0.00024657,4]
[336606615,1724970643789,-500.0,0.00024657,4]
[336606617,1724970643799,-500.0,0.00024657,4]
[336606619,1724970643808,-500.0,0.00024657,4]
[336606621,1724970643818,-500.0,0.00024657,4]
[336606623,1724970643827,-500.0,0.00024657,4]
[336606625,1724970643836,-500.0,0.00024657,4]